Cogmind - Beta 15 @@@ ROGUE MODE // 2025.09.13 @ 21:53:09 Player: BlobtheGreat Result: Destroyed by Executioner with Helical Railgun Performance ------------- Evolutions (8) 4000 Regions Visited (26) 5200 Robots Destroyed (245) 1225 Value Destroyed (8211) 8211 Prototype IDs (124) 2480 Alien Tech Used (1) 200 Bonus (16665) 16665 TOTAL SCORE: 37981 Bonus ------- High Alert Combat Kills 658 Follower Combat Kills 207 Forged Quantum Companion 2000 Registered with UFD 300 Met Optimus in HQ 500 Met Warlord at Base 500 MAIN.C Attacked Warlord 500 Hacked Protovariant 500 Scanned by Researcher 500 Met Optimus at Protoforge 1000 Completed Drillbomb Mission10000 Cogmind --------- Core Integrity 0/1450 Matter 300/300 Energy 19/100 System Corruption 1% Temperature Cool (3) Movement Flying (45) Location -2/Protoforge Parts ------- > --- POWER (2) -------- (None) > --- PROPULSION (7) --- Impulse Thruster Array > --- UTILITY (12) ----- Experimental Melee Analysis Suite Experimental Core Analyzer Experimental Core Analyzer Improved Armor Integrity Analyzer Makeshift Core Shielding Experimental System Purifier > --- WEAPON (2) ------- Superquantum Companion > --- INVENTORY (5) ---- Medium Storage Unit Peak State ------------ > --- POWER ------------ Light Antimatter Reactor Light Quantum Reactor > --- PROPULSION ------- Cooled Cesium-ion Thruster Impulse Thruster Array Impulse Thruster Array Impulse Thruster Array > --- UTILITY ---------- Medium Storage Unit Enhanced Optical Array Advanced Melee Analysis Suite Experimental Melee Analysis Suite Experimental Core Analyzer Experimental Core Analyzer Improved Armor Integrity Analyzer Experimental Reaction Control System Advanced Phase Shifter Centrium Light Armor Plating Centrium Light Armor Plating Experimental System Purifier > --- WEAPON ----------- Helical Railgun Superquantum Companion > --- INVENTORY -------- UFD Drillbomb [Rating: 197] Favorites ----------- Power Nuclear Core Engine Light Angular Momentum Engine Power Core Nuclear Core Reactor Micro Antimatter Reactor Propulsion Light Treads Treads Light Treads Flight Unit Cooled Cesium-ion Thruster Utility Advanced Hacking Suite Device Structural Scanner Storage Medium Storage Unit Processor Enhanced Optical Array Hackware Advanced Hacking Suite Protection Improved Light Armor Plating Weapon Companion Sword Energy Gun Improved Medium Laser Energy Cannon Vortex Cannon Ballistic Gun Improved Assault Rifle Ballistic Cannon Light Cannon Launcher Tiamat Missile Launcher Special Weapon Improved Plasma Cutter Impact Weapon Heavy Flail Slashing Weapon Companion Sword Build | -11 -10 -10 -9 -9 -9 -9 -6 -6 -6 -6 -6 -6 -5 -5 -5 -5 -5 -5 -5 -4 -4 -3 -3 -2 -2 -2 ------- Run | Yrd Mat Min Mat Sto Rec Scr Fac Was Fac Low Low Zio Pro Fac Was Fac Upp Upp War Pro Fac Res Tes Res Qua Frg Slots Evolved 16 | . . . 2 . . . 6 . . . . . . 2 . . . . . . 2 2 . 2 . . Power 1 | . . . . . . . . . . . . . . . . . . . . . . 1 . . . . Propulsion 5 | . . . 1 . . . 2 . . . . . . . . . . . . . 1 . . 1 . . Utility 10 | . . . 1 . . . 4 . . . . . . 2 . . . . . . 1 1 . 1 . . Weapon . | . . . . . . . . . . . . . . . . . . . . . . . . . . . Parts Attached 192 | 7 6 7 23 12 2 6 18 . 8 . 2 3 . 10 . 11 3 . 6 . 4 8 9 4 3 40 Power 19 | 1 . 1 2 . . 1 3 . 1 . . . . 1 . . 1 . . . . 2 . 1 1 4 Engine 6 | 1 . 1 1 . . . 2 . . . . . . . . . 1 . . . . . . . . . Core 5 | . . . 1 . . 1 1 . 1 . . . . 1 . . . . . . . . . . . . Reactor 8 | . . . . . . . . . . . . . . . . . . . . . . 2 . 1 1 4 Propulsion 49 | 2 . 2 12 7 2 2 3 . 3 . . . . 2 . 3 . . 1 . . 1 2 . . 7 Treads 23 | 2 . 2 11 6 2 . . . . . . . . . . . . . . . . . . . . . Leg . | . . . . . . . . . . . . . . . . . . . . . . . . . . . Wheel . | . . . . . . . . . . . . . . . . . . . . . . . . . . . Hover . | . . . . . . . . . . . . . . . . . . . . . . . . . . . Flight 26 | . . . 1 1 . 2 3 . 3 . . . . 2 . 3 . . 1 . . 1 2 . . 7 Utility 93 | 2 3 3 3 2 . 2 11 . 4 . 2 3 . 5 . 6 2 . 4 . 4 5 3 3 . 26 Device 33 | 1 2 2 . . . 1 2 . 1 . 2 1 . 2 . 2 2 . 2 . 1 3 1 . . 8 Storage 7 | 1 1 . 1 1 . . . . 1 . . . . . . . . . . . . 1 . 1 . . Processor 20 | . . . . . . 1 3 . 1 . . 1 . . . 1 . . 1 . . . . . . 12 Hackware 18 | . . . . . . . 4 . 1 . . 1 . 2 . 3 . . 1 . 2 1 2 1 . . Protection 15 | . . 1 2 1 . . 2 . . . . . . 1 . . . . . . 1 . . 1 . 6 Artifact . | . . . . . . . . . . . . . . . . . . . . . . . . . . . Weapon 31 | 2 3 1 6 3 . 1 1 . . . . . . 2 . 2 . . 1 . . . 4 . 2 3 Energy Gun 8 | . 1 . 4 . . . . . . . . . . . . . . . . . . . 3 . . . Energy Cannon 1 | . . . . . . . . . . . . . . . . . . . 1 . . . . . . . Ballistic Gun 8 | 2 1 . 2 . . . . . . . . . . . . . . . . . . . 1 . . 2 Ballistic Cannon 2 | . . 1 . . . . . . . . . . . . . . . . . . . . . . . 1 Launcher 5 | . 1 . . 1 . . 1 . . . . . . 1 . 1 . . . . . . . . . . Special Weapon 3 | . . . . 1 . . . . . . . . . 1 . 1 . . . . . . . . . . Impact Weapon 1 | . . . . 1 . . . . . . . . . . . . . . . . . . . . . . Slashing Weapon 3 | . . . . . . 1 . . . . . . . . . . . . . . . . . . 2 . Piercing Weapon . | . . . . . . . . . . . . . . . . . . . . . . . . . . . Special Melee Weapon . | . . . . . . . . . . . . . . . . . . . . . . . . . . . Unidentified Prototypes 31 | . . . 4 2 . 1 . . 1 . . 2 . 1 . 1 . . 6 . . . 4 . 2 7 Corrupted Parts 1 | . . . . . . . 1 . . . . . . . . . . . . . . . . . . . System Corruption 4 | . . . . . . . 4 . . . . . . . . . . . . . . . . . . . Parts Lost 50 | . 5 3 2 2 . . . . . 1 . . . . . 3 . . . . 2 . . 2 1 29 Power 8 | . . 1 . . . . . . . . . . . . . 1 . . . . . . . . 1 5 Propulsion 10 | . . 2 . . . . . . . . . . . . . 1 . . . . . . . . . 7 Utility 24 | . 2 . . 2 . . . . . 1 . . . . . . . . . . 2 . . 2 . 15 Weapon 8 | . 3 . 2 . . . . . . . . . . . . 1 . . . . . . . . . 2 Highest Loss Streak 10 | . 2 3 1 1 . . . . . 1 . . . . . 2 . . . . 2 . . 2 1 10 To Critical Strikes 1 | . . . . . . . . . . . . . . . . . . . . . . . . . . 1 Average Backups 12 | 5 7 10 17 20 24 22 5 4 5 7 7 7 8 9 10 9 10 9 10 10 8 8 8 7 7 1 Power 1 | . 1 . 1 2 2 1 . . . 1 1 1 1 1 1 1 . . . . . . 1 1 . . Propulsion 3 | 3 4 5 4 8 9 6 . . . . . . . . 1 1 2 2 2 2 1 1 1 1 1 . Utility 5 | . . 1 4 4 5 10 3 3 3 5 5 5 5 6 6 6 7 7 7 7 5 4 5 4 4 . Weapon 2 | . 1 2 5 5 6 2 1 1 . . 1 1 . 1 2 1 1 . 1 1 1 1 . 1 1 . Tool/Special . | . . . . . . . . . . . . . . . . . . . . . . . . . . . Unused Backups 47 | . . . 20 1 . 10 2 1 1 . . . . 3 . 2 . . . . . 4 1 . . 2 Power 5 | . . . 3 . . 2 . . . . . . . . . . . . . . . . . . . . Propulsion 13 | . . . 11 1 . 1 . . . . . . . . . . . . . . . . . . . . Utility 19 | . . . 2 . . 4 2 1 1 . . . . 2 . 2 . . . . . 3 1 . . 1 Weapon 8 | . . . 4 . . 3 . . . . . . . . . . . . . . . 1 . . . . Tool/Special 2 | . . . . . . . . . . . . . . 1 . . . . . . . . . . . 1 Average Slot Usage (%) 89 | . 93 99 99 99 98 76 91 93 89 86 84 84 86 89 94 90 86 88 86 88 88 88 90 91 92 83 Engine 3 | . 14 13 7 . . . 5 6 3 . . . . 1 5 4 . . . . . . . . . . Core 4 | . . . 3 11 11 11 . . 2 6 6 5 6 3 . . 5 5 5 5 5 4 3 4 3 . Reactor 1 | . . . . . . . . . . . . . . . . . . . . . . 3 4 4 4 7 Treads 15 | . 27 28 32 33 33 28 . . . . . . . . . . . . . . . . . . . . Flight 12 | . . . . . . 1 32 33 29 26 26 25 26 23 23 23 23 23 23 23 26 22 23 26 26 19 Device 11 | . 9 10 10 10 11 11 13 13 13 13 6 6 6 12 11 13 15 17 11 11 11 10 9 14 17 11 Storage 7 | . 14 14 11 11 11 11 . . 3 6 6 6 6 5 5 5 5 5 5 5 5 4 4 4 4 3 Processor 7 | . . . . . . 4 12 13 13 13 13 13 13 11 11 11 11 11 11 11 10 9 9 8 8 21 Hackware 7 | . . . . . . . 12 13 13 13 13 13 13 16 17 17 17 17 19 23 20 19 19 15 13 2 Protection 6 | . . 3 11 11 11 6 5 6 2 . 3 5 6 3 5 2 . . . . 3 6 7 8 8 8 Ballistic Gun 5 | . 20 14 12 20 20 . . . . . . . . . . . . . . . . . . . . . Slashing Weapon 2 | . . . . . . 2 6 6 6 6 6 6 6 5 5 5 5 5 5 5 5 4 4 4 4 5 Peak Build Rating 197 | 7 7 10 24 26 23 35 64 59 76 77 71 77 82 93 92 96 91 98 105 106 116 130 138 142 153 197 Average Rating 60 | 6 6 8 19 21 21 20 55 58 67 71 68 69 76 87 92 89 90 91 95 100 108 122 126 135 145 167 On Entrance 70 | . 7 6 10 22 22 17 28 59 59 71 66 69 75 76 93 92 88 91 91 100 100 112 130 132 136 153 Naked Turns . | . . . . . . . . . . . . . . . . . . . . . . . . . . . Heaviest Build 101 | 11 27 30 60 101 101 95 18 18 25 31 25 27 33 32 30 30 31 40 45 38 35 43 41 46 44 55 Greatest Support 60 | 40 40 40 60 60 60 60 25 24 33 38 38 31 31 40 32 43 31 31 33 33 48 50 50 58 58 58 Greatest Overweight (x) 29 | . . . 1 1 1 29 . . . . . 2 1 1 . 2 . 1 1 1 . 1 . . . 1 Average Overweight (x) . | . . . . . 1 1 . . . . . . . . . . . . . . . . . . . . Largest Inventory Capacity 25 | 8 15 15 20 25 25 25 25 5 10 10 10 10 10 10 10 10 10 10 10 10 10 10 10 10 10 10 Average Capacity 15 | 7 14 15 18 22 25 25 5 5 7 10 10 10 10 10 10 10 10 10 10 10 10 10 10 10 10 9 Most Carried 25 | 7 9 15 20 24 25 25 17 5 8 8 9 10 9 10 10 10 10 10 10 10 9 10 10 10 10 10 Average Carried 13 | 5 7 10 17 20 24 22 5 4 5 7 7 7 8 9 10 9 9 9 9 9 8 9 9 8 8 7 Final Capacity 25 | 8 15 15 20 25 25 25 5 5 10 10 10 10 10 10 10 10 10 10 10 10 10 10 10 10 10 5 Final Carried 25 | 7 9 15 20 23 25 15 5 5 7 8 7 7 9 10 10 10 10 10 10 10 6 10 10 9 8 1 Class Distribution -------------------- 24% | Commander-Mutant 19% | Hacker-Scout 15% | Mutant 12% | Scavenger-Mutant 8% | Wizard-Scout 7% | Hacker-Ninja 4% | Scavenger-Sprinter 4% | Wizard-Ninja 3% | Hacker-Sprinter Dominant Class ---------------- Mutant | -10/Materials Mutant | -10/Mines Scavenger-Mutant | -9/Materials Mutant | -9/Storage Commander-Mutant | -9/Recycling Commander-Mutant | -9/Scraptown Hacker-Scout | -6/Factory Hacker-Scout | -6/Waste Hacker-Scout | -6/Factory Hacker-Scout | -6/Lower Caves Hacker-Sprinter | -6/Lower Caves Hacker-Sprinter | -6/Zion Hacker-Sprinter | -5/Proximity Caves Hacker-Scout | -5/Factory Hacker-Scout | -5/Waste Hacker-Scout | -5/Factory Hacker-Scout | -5/Upper Caves Hacker-Scout | -5/Upper Caves Wizard-Scout | -5/Warlord Wizard-Scout | -4/Proximity Caves Wizard-Scout | -4/Factory Wizard-Scout | -3/Research Wizard-Scout | -3/Testing Wizard-Ninja | -2/Research Hacker-Ninja | -2/Quarantine Scavenger-Sprinter | -2/Protoforge Resources | -11 -10 -10 -9 -9 -9 -9 -6 -6 -6 -6 -6 -6 -5 -5 -5 -5 -5 -5 -5 -4 -4 -3 -3 -2 -2 -2 ----------- Run | Yrd Mat Min Mat Sto Rec Scr Fac Was Fac Low Low Zio Pro Fac Was Fac Upp Upp War Pro Fac Res Tes Res Qua Frg Matter Collected 5937 | 352 215 150 657 705 139 45 376 . 219 206 . 60 167 192 76 142 126 43 265 35 169 255 302 232 . 809 Remotely . | . . . . . . . . . . . . . . . . . . . . . . . . . . . Salvage Created 9768 | 175 666 73 1671 1522 50 . 262 . 679 20 . . 72 188 . 193 . 70 . 35 255 442 360 238 37 2760 Parts 543 | 19 37 3 99 90 1 . 20 . 27 4 . . 3 14 . 12 . 6 . 7 24 20 17 10 2 128 Haulers Intercepted 15 | . 2 . 6 6 . . 1 . . . . . . . . . . . . . . . . . . . Recyclers Shooed 7 | . 1 . 5 1 . . . . . . . . . . . . . . . . . . . . . . Parts Field Recycled . | . . . . . . . . . . . . . . . . . . . . . . . . . . . Retrieved Matter . | . . . . . . . . . . . . . . . . . . . . . . . . . . . Parts Self-Destructed 13 | . . . . . . . . . . 2 . . 2 . . . . 4 . 5 . . . . . . Prevented . | . . . . . . . . . . . . . . . . . . . . . . . . . . . Kills | -11 -10 -10 -9 -9 -9 -9 -6 -6 -6 -6 -6 -6 -5 -5 -5 -5 -5 -5 -5 -4 -4 -3 -3 -2 -2 -2 ------- Run | Yrd Mat Min Mat Sto Rec Scr Fac Was Fac Low Low Zio Pro Fac Was Fac Upp Upp War Pro Fac Res Tes Res Qua Frg Combat Hostiles Destroyed 148 | . 14 3 27 22 . . 1 . 4 2 . . 5 5 . 5 . 4 . 2 9 . 6 4 . 35 Melee 29 | . . . . . . . 1 . . . . . . . . . . 1 . 1 . . 2 . . 24 Guns 59 | . 11 1 26 21 . . . . . . . . . . . . . . . . . . . . . . Cannons 11 | . . 2 1 . . . . . . . . . . . . . . . . . . . . . . 8 AOE 45 | . 3 . . . . . . . 4 2 . . 5 5 . 5 . 3 . 1 9 . 4 4 . . Classes Destroyed 22 | 2 6 1 1 2 . . 1 . . . . . 1 . . . . . . 1 . . . . . 7 Worker 21 | . 2 . 3 2 . . 1 . 1 . . . . 2 . 1 . . . . 3 . 3 1 . 2 Builder 2 | . 1 . . . . . . . . . . . . . . . . . . . . 1 . . . . Tunneler 6 | 5 . . 1 . . . . . . . . . . . . . . . . . . . . . . . Hauler 15 | . 2 . 6 6 . . 1 . . . . . . . . . . . . . . . . . . . Recycler 17 | 1 . . 5 2 . . . . 4 . . . . . . . . . . . 1 2 1 1 . . Minesweeper 1 | . . . . . . . . . . . . . 1 . . . . . . . . . . . . . Operator 6 | . . . . 2 . . 1 . . . . . . 1 . . . . . . . . . . . 2 Drone 5 | . . . . . . . . . . . . . . . . . . . . 2 . . . . . 3 Watcher 28 | . 2 . 4 2 . . 3 . 1 . . . . 3 . 4 . . . . . 4 1 2 1 1 Swarmer 62 | . 3 . 10 4 . . . . 4 2 . . 5 5 . 5 . 4 . . 9 . 5 4 . 2 Saboteur 1 | . . . . . . . . . . . . . . . . . . . . . . . . . . 1 Grunt 35 | . 11 2 8 6 1 . . . . . . . . . . . . . . . . . . . . 7 Brawler 3 | . . . . 1 . . . . . . . . . . . . . . . . . . . . . 2 Duelist 1 | . . . . . . . . . . . . . . . . . . . . . . . . . . 1 Protector 2 | . . . . . . . . . . . . . . . . . . . . . . . . . . 2 Sentry 20 | . . . 9 11 . . . . . . . . . . . . . . . . . . . . . . Demolisher 1 | . . 1 . . . . . . . . . . . . . . . . . . . . . . . . Hunter 2 | . . . . . . . . . . . . . . . . . . . . . . . . . . 2 Programmer 4 | . . . . . . . 1 . . . . . . . . . . . . . . . 1 . . 2 Hotshot 6 | . . . . . . . . . . . . . . . . . . . . . . . . . . 6 Striker 1 | . . . . . . . . . . . . . . . . . . . . . . . . . . 1 Executioner 4 | . . . . . . . . . . . . . . . . . . . . . . . . . . 4 Alpha 7 2 | . . . . . . . . . . . . . . . . . . . . . . . . . . 2 Decomposer 2 | . . . . . . . . . . . . . . . . . . 1 . 1 . . . . . . Best Kill Streak 13 | 3 5 1 5 4 . . 1 . 5 2 . . 5 7 . 5 . 4 . 1 13 3 6 5 1 4 Combat Bots Only 5 | . 3 1 4 4 . . 1 . 4 2 . . 5 5 . 5 . 4 . 1 5 . 5 4 . 4 Max Kills in Single Turn 5 | 1 2 1 1 1 1 . 1 . 5 1 . . 2 4 . 5 . 2 . 1 4 1 2 2 1 2 Gunslinging . | . . . . . . . . . . . . . . . . . . . . . . . . . . . Exploded 5 | . 1 . . . . . . . 4 1 . . 2 4 . 5 . 2 . 1 4 . 2 2 . . Melee 2 | . . . . . . . 1 . . . . . . . . . . 1 . 1 . . 1 . . 2 Uniques/NPCs Destroyed . | . . . . . . . . . . . . . . . . . . . . . . . . . . . Combat | -11 -10 -10 -9 -9 -9 -9 -6 -6 -6 -6 -6 -6 -5 -5 -5 -5 -5 -5 -5 -4 -4 -3 -3 -2 -2 -2 -------- Run | Yrd Mat Min Mat Sto Rec Scr Fac Was Fac Low Low Zio Pro Fac Was Fac Upp Upp War Pro Fac Res Tes Res Qua Frg Hostile Shots Fired 1049 | . 82 21 113 90 3 . 56 1 20 6 . . 11 19 . 61 . 6 1 . 71 12 21 29 15 411 Missed 509 | . 24 4 35 27 . . 30 1 13 3 . . 3 11 . 31 . 4 . . 39 4 7 17 10 246 Deflected 7 | . . . . . . . . . . . . . . . . . . . . . . . . . . 7 Hits 540 | . 58 17 78 63 3 . 26 . 7 3 . . 8 8 . 30 . 2 1 . 32 8 14 12 5 165 Melee 3 | . . . . . . . . . . . . . . . . . . . . . . . . . . 3 Projectile 537 | . 58 17 78 63 3 . 26 . 7 3 . . 8 8 . 30 . 2 1 . 32 8 14 12 5 162 AOE 8 | . . 8 . . . . . . . . . . . . . . . . . . . . . . . . Critical Strikes 20 | . 2 . 1 2 . . 1 . . . . . . . . 1 . . . . 1 . 1 1 . 10 Actively Blocked 2 | . . . . . . . . . . . . . . . . . . . . . . . 1 . . 1 Damage Taken 11029 | . 767 502 934 742 26 . 346 . 81 67 . . 181 158 . 559 . 31 20 10 524 180 289 270 151 5191 Core 2537 | . 138 92 55 120 . . 150 . 64 5 . . 18 55 . 94 . 31 . 10 82 37 132 8 48 1398 Absorbed by Shields 55 | . . . . . . . . . . . . . . . . . . . . . . 24 . . . 31 Redirected to Shielding 463 | . . . . . . . . . . . . . . . . . . . . . 32 16 38 124 . 253 Regen/Repaired (Parts) 1126 | . 106 . . . . 102 75 . 122 . . 179 . 36 . 113 . . . . . 174 41 . . 178 Core Remaining (%) 70 | 100 . 8 . . . 56 . . . . . . 72 . . . . . . 81 92 . 87 . . . Volleys Fired 376 | 41 80 18 118 69 4 . . . 1 3 . . 7 2 . 3 . 4 1 1 4 . 2 3 4 11 Largest 2 | 2 2 2 2 2 2 . . . 1 1 . . 1 1 . 1 . 1 1 1 1 . 1 1 1 1 Hottest 112 | 40 40 50 112 46 46 . . . 43 43 . . 43 43 . 46 . 46 50 46 46 . 46 46 46 58 Shots Fired 687 | 82 143 36 236 134 10 . . . 1 3 . . 7 2 . 3 . 4 1 1 4 . 2 3 4 11 Gun 601 | 82 138 18 209 134 10 . . . . . . . . . . . . . . . . . . . . 10 Cannon 47 | . . 18 27 . . . . . . . . . . . . . . . 1 . . . . . . 1 Launcher 39 | . 5 . . . . . . . 1 3 . . 7 2 . 3 . 4 . 1 4 . 2 3 4 . Special . | . . . . . . . . . . . . . . . . . . . . . . . . . . . Kinetic 547 | 82 132 36 142 134 10 . . . . . . . . . . . . . . . . . . . . 11 Thermal 93 | . . . 93 . . . . . . . . . . . . . . . . . . . . . . . Explosive 39 | . 5 . . . . . . . 1 3 . . 7 2 . 3 . 4 . 1 4 . 2 3 4 . Electromagnetic 7 | . 6 . 1 . . . . . . . . . . . . . . . . . . . . . . . Entropic 1 | . . . . . . . . . . . . . . . . . . . 1 . . . . . . . Robot Hit Streak 17 | 10 11 5 17 16 6 . . . . 2 . . 2 4 . . . 6 . . 2 . 3 6 . 7 Robot Miss Streak 6 | 4 3 4 6 4 1 . . . 1 2 . . 2 . . . . . . . 1 . . . . 3 Penetration Max 1 | . . . . . . . . . . . . . . . . . . . . . . . . . . 1 Secondary Targets 5 | . . . 2 3 . . . . . . . . . . . . . . . . . . . . . . Max Gunslinging Chain 1 | . . . 1 1 . . . . . . . . . . . . . . . . . . . . . . Autonomous 27 | . . . . . . . . . . . . . . . . . . . . . . . . . 2 25 Shots Hit Robots 597 | 51 96 19 141 92 8 . 19 . 9 2 . . 5 11 . 8 . 4 . 2 7 15 16 10 . 82 Core Hits 319 | 14 47 8 58 47 3 . 6 . 11 2 . . 8 10 . 9 . 4 . 2 12 7 13 9 2 47 Critical Kills 2 | . 1 . . 1 . . . . . . . . . . . . . . . . . . . . . . Critical Parts Destroyed 1 | . . . . 1 . . . . . . . . . . . . . . . . . . . . . . Critical Strikes 15 | . 2 . 5 2 . . . . . . . . . . . . . . . . . 4 . . . 2 Burn 5 | . . . 5 . . . . . . . . . . . . . . . . . . . . . . . Destroy 2 | . 1 . . 1 . . . . . . . . . . . . . . . . . . . . . . Corrupt 1 | . 1 . . . . . . . . . . . . . . . . . . . . . . . . . Smash 1 | . . . . 1 . . . . . . . . . . . . . . . . . . . . . . Melee Attacks 582 | . . . . 7 . . 68 . 53 2 1 1 3 66 . 53 2 2 . 5 27 75 35 48 11 123 Impact 7 | . . . . 7 . . . . . . . . . . . . . . . . . . . . . . Slashing 575 | . . . . . . . 68 . 53 2 1 1 3 66 . 53 2 2 . 5 27 75 35 48 11 123 Piercing . | . . . . . . . . . . . . . . . . . . . . . . . . . . . Sneak Attacks 48 | . . . . 2 . . 6 . 4 . . . 1 5 . 3 . 1 . 1 4 4 6 3 . 8 Combat Hostiles 5 | . . . . . . . . . . . . . . . . . . . . . . . 3 . . 2 Follow-up Attacks 3 | . . . . . . . . . . . . . . . . . . . . . . . . . . 3 Damage Inflicted 25966 | 409 1166 293 2342 1655 180 . 1088 . 780 184 . . 632 1101 . 870 . 489 . 171 1337 846 1607 1144 236 9436 Guns 4987 | 406 791 50 2013 1382 153 . . . . . . . . . . . . . . . . . . . . 192 Cannons 2832 | . . 234 282 . . . . . . . . . . . . . . . . . . . . . 151 2165 Explosions 4860 | . 371 . . . . . . . 197 184 . . 450 439 . 418 . 359 . 50 928 . 728 651 85 . Melee 13176 | . . . . 252 . . 1088 . 583 . . . 182 662 . 452 . 130 . 121 409 846 879 493 . 7079 Ramming 111 | 3 4 9 47 21 27 . . . . . . . . . . . . . . . . . . . . . Kinetic 4413 | 406 732 284 1218 1382 153 . . . . . . . . . . . . . . . . . . . . 238 Thermal 1164 | . 102 . 1062 . . . . . . . . . . . . . . . . . . . . . . . Explosive 4758 | . 269 . . . . . . . 197 184 . . 450 439 . 418 . 359 . 50 928 . 728 651 85 . Electromagnetic 74 | . 59 . 15 . . . . . . . . . . . . . . . . . . . . . . . Impact 252 | . . . . 252 . . . . . . . . . . . . . . . . . . . . . . Slashing 12924 | . . . . . . . 1088 . 583 . . . 182 662 . 452 . 130 . 121 409 846 879 493 . 7079 Piercing . | . . . . . . . . . . . . . . . . . . . . . . . . . . . Phasic 2270 | . . . . . . . . . . . . . . . . . . . . . . . . . 151 2119 Highest Corruption 14 | . . . 5 5 5 . 7 13 14 14 14 14 . . . 1 1 1 1 . . 2 3 2 4 12 Average Corruption 5 | . . . 5 5 5 . 5 11 13 14 14 14 . . . 1 1 1 1 . . 1 2 2 2 8 Corruption Purged 15 | . . . . . . . . . . . . . . . . . . . . . . 2 . . . 13 Corruption Blocked . | . . . . . . . . . . . . . . . . . . . . . . . . . . . Effects 288 | . . . 44 46 30 . 19 6 58 11 5 . . . . 3 1 2 1 . . 7 4 4 5 42 Message Errors 52 | . . . 9 7 5 . 5 2 9 2 1 . . . . 1 . 1 1 . . 1 . 1 2 5 Matter Fused 69 | . . . 9 11 8 . 3 . 17 2 1 . . . . 1 1 1 . . . 2 3 2 . 8 Heat Flow Errors 28 | . . . 4 6 2 . 2 . 6 2 1 . . . . . . . . . . . 1 . . 4 Energy Discharges 27 | . . . 5 6 3 . 1 . 5 . 2 . . . . . . . . . . . . . 1 4 Parts Rejected 5 | . . . 1 . . . 1 . . 1 . . . . . . . . . . . 1 . . . 1 Parts Fused 8 | . . . . 2 2 . 1 . 1 1 . . . . . . . . . . . . . 1 . . Data Loss (minor) 45 | . . . 7 6 5 . 4 . 10 1 . . . . . 1 . . . . . 2 . . 2 7 Data Loss (major) 13 | . . . 2 2 2 . 2 . 2 . . . . . . . . . . . . 1 . . . 2 Misfires 6 | . . . 2 2 2 . . . . . . . . . . . . . . . . . . . . . Alerts 9 | . . . 3 1 1 . . . 2 . . . . . . . . . . . . . . . . 2 Misdirections 21 | . . . . . . . . 4 6 2 . . . . . . . . . . . . . . . 9 Weapon Failures 5 | . . . 2 3 . . . . . . . . . . . . . . . . . . . . . . Overload Shots . | . . . . . . . . . . . . . . . . . . . . . . . . . . . Overflow Damage 2550 | . . . . 119 . . 156 . 78 . . . 122 148 . 83 . 83 . 72 128 13 269 181 16 1082 Projectiles 218 | . . . . . . . . . . . . . . . . . . . . . . . . . 16 202 Explosions 209 | . . . . . . . . . . . . . 1 . . 2 . . . . 128 . . 78 . . Melee 2123 | . . . . 119 . . 156 . 78 . . . 121 148 . 81 . 83 . 72 . 13 269 103 . 880 Knockbacks 4 | . . 2 1 . . . . . . . . . . . . . . . . . . . . . . 1 Impact . | . . . . . . . . . . . . . . . . . . . . . . . . . . . Kinetic 4 | . . 2 1 . . . . . . . . . . . . . . . . . . . . . . 1 Secondary . | . . . . . . . . . . . . . . . . . . . . . . . . . . . Self-Inflicted Damage 109 | . 58 . . . . . . . . 17 . . 22 12 . . . . . . . . . . . . Shots 8 | . 4 . . . . . . . . 1 . . 2 1 . . . . . . . . . . . . Rammed 14 | 2 2 2 4 2 2 . . . . . . . . . . . . . . . . . . . . . Targets Rammed 18 | 2 2 2 6 4 2 . . . . . . . . . . . . . . . . . . . . . Kicked . | . . . . . . . . . . . . . . . . . . . . . . . . . . . Crushed 4 | . . . 2 2 . . . . . . . . . . . . . . . . . . . . . . Highest Temperature 282 | . 43 46 279 282 253 . 206 . 247 100 202 . 4 21 . 39 . . . . 71 172 249 184 207 246 Average Temperature 55 | . 13 24 60 112 136 . 86 . 95 51 88 . 4 15 . 17 . . . . 21 21 42 50 62 81 Received Heat Transfer 1647 | . 402 93 348 210 9 . 39 . . 9 . . 12 . . 18 . . 9 . 141 . 21 9 . 327 Effects 4 | . . . . 3 . . . . . . . . . . . . . . . . . . . . 1 . Interference 4 | . . . . 3 . . . . . . . . . . . . . . . . . . . . 1 . Siege Activations . | . . . . . . . . . . . . . . . . . . . . . . . . . . . Martial Activations . | . . . . . . . . . . . . . . . . . . . . . . . . . . . Shielding Activations . | . . . . . . . . . . . . . . . . . . . . . . . . . . . Robots Disrupted 4 | . . . . . . . . . . . . . . . . 1 . . . . . . 1 . . 2 Combat Hostiles 3 | . . . . . . . . . . . . . . . . . . . . . . . 1 . . 2 Robots Corrupted 1 | . . . . 1 . . . . . . . . . . . . . . . . . . . . . . Combat Hostiles 1 | . . . . 1 . . . . . . . . . . . . . . . . . . . . . . Parts Fried 3 | . . . . 3 . . . . . . . . . . . . . . . . . . . . . . Impact Corruptions 3 | . . . . 3 . . . . . . . . . . . . . . . . . . . . . . Robots Melted . | . . . . . . . . . . . . . . . . . . . . . . . . . . . Combat Hostiles . | . . . . . . . . . . . . . . . . . . . . . . . . . . . Parts Melted 5 | . . . 5 . . . . . . . . . . . . . . . . . . . . . . . Heat Transferred 2740 | . 150 . 2590 . . . . . . . . . . . . . . . . . . . . . . . Parts Sabotaged . | . . . . . . . . . . . . . . . . . . . . . . . . . . . Parts Stolen . | . . . . . . . . . . . . . . . . . . . . . . . . . . . Parts Stripped 28 | . . . . . . . . . . . . . . . . . . . . . . . . . . 28 Power Chain Reactions 2 | . 2 . . . . . . . . . . . . . . . . . . . . . . . . . Alert | -11 -10 -10 -9 -9 -9 -9 -6 -6 -6 -6 -6 -6 -5 -5 -5 -5 -5 -5 -5 -4 -4 -3 -3 -2 -2 -2 ------- Run | Yrd Mat Min Mat Sto Rec Scr Fac Was Fac Low Low Zio Pro Fac Was Fac Upp Upp War Pro Fac Res Tes Res Qua Frg Maximum Alert Level 4 | . . . 1 1 . . . . . . . . . 1 . 1 . . . . 2 1 1 1 1 4 Low Security (%) 63 | 100 100 100 86 15 100 . 100 100 100 . . . . 84 100 46 . . . . . . 56 96 17 6 Level 1 28 | . . . 13 84 . . . . . . . . . 15 . 53 . . . . 72 100 43 3 82 24 Level 2 4 | . . . . . . . . . . . . . . . . . . . . . 27 . . . . 30 Level 3 3 | . . . . . . . . . . . . . . . . . . . . . . . . . . 37 Level 4 . | . . . . . . . . . . . . . . . . . . . . . . . . . . . Level 5 . | . . . . . . . . . . . . . . . . . . . . . . . . . . . High Security . | . . . . . . . . . . . . . . . . . . . . . . . . . . . Max Security . | . . . . . . . . . . . . . . . . . . . . . . . . . . . Peak Influence 1129 | 10 169 60 309 292 168 . 80 19 136 . . . . 266 83 267 . . . . 693 360 380 246 344 1129 Initial 345 | . . 40 . 85 88 . . 19 . . . . . 56 83 37 . . . . 300 345 121 102 138 182 Average 168 | . 60 7 65 228 36 . 24 9 47 . . . . 97 70 171 . . . . 422 268 230 73 262 615 Influence Increases 9868 | 30 570 118 949 752 334 . 404 . 472 50 . . 130 687 . 669 . 150 . 10 964 342 483 462 346 1946 Destroy 0b10 Robot/C 2940 | . 280 80 540 440 80 . 40 . 80 40 . . 100 100 . 100 . 80 . . 180 . 120 80 . 600 Destroy 0b10 Robot/NC 515 | 30 35 . 95 70 . . 30 . 30 . . . 5 30 . 25 . . . 10 20 35 25 20 5 50 Destroy Leader 666 | . 58 30 160 166 . . 28 . 12 10 . . 10 16 . 18 . 10 . . 20 8 22 14 2 82 Allied During Kill 67 | . . 8 . 18 37 . 4 . . . . . . . . . . . . . . . . . . . Trap Triggered on 0b10 90 | . . . . . . . . . . . . . . . . 40 . . . . . . . . . 50 Successful Hack 576 | . 58 . 47 9 7 . 21 . 90 . . . . 60 . 20 . . . . 31 55 52 15 66 45 Select Force Hacks 300 | . 60 . 30 . 210 . . . . . . . . . . . . . . . . . . . . . Disable Machine 420 | . 30 . 45 45 . . . . 15 . . . . 15 . 75 . . . . 15 . 120 . 45 15 Destroy Structure 1144 | . 34 . 2 4 . . 41 . 50 . . . . 136 . 136 . . . . 128 94 114 198 123 84 Advance Influence 300 | . . . . . . . . . . . . . . . . . . . . . 300 . . . . . Partial Spotted 1155 | . . . . . . . 75 . 135 . . . . 150 . 60 . . . . 180 150 . 135 60 210 Lose Combat Pursuer 1695 | . 15 . 30 . . . 165 . 60 . . . 15 180 . 195 . 60 . . 90 . 30 . 45 810 Influence Decreases 8815 | 30 465 223 747 726 562 . 347 57 406 116 . . 40 538 186 504 152 83 133 10 306 783 518 398 268 1217 Entered New Map 1558 | . . 65 . 117 140 . . 38 . 25 . . . 34 156 16 82 13 133 . . 313 96 80 108 142 Time Decay 6100 | 30 405 158 451 589 417 . 341 19 406 91 . . 40 474 30 458 70 70 . 10 286 470 262 278 150 595 Lost Part 460 | . 50 . 20 20 . . . . . . . . . . . 30 . . . . 20 . . 20 10 290 Lost Ally 121 | . 10 . . . 5 . 6 . . . . . . 30 . . . . . . . . 10 20 . 40 Purge Threat 576 | . . . 276 . . . . . . . . . . . . . . . . . . . 150 . . 150 Squads Dispatched 93 | . 4 . 4 3 . . 7 . 12 . . . . 11 . 9 . . . . 9 9 12 3 3 7 Investigation 42 | . 3 . 4 1 . . 4 . 7 . . . . 8 . 4 . . . . 2 4 3 . . 2 Extermination 31 | . . . . . . . 3 . 5 . . . . 3 . 5 . . . . 3 4 1 3 3 1 Reinforcement 17 | . 1 . . 2 . . . . . . . . . . . . . . . . 4 1 5 . . 4 Assault 1 | . . . . . . . . . . . . . . . . . . . . . . . 1 . . . Garrison 2 | . . . . . . . . . . . . . . . . . . . . . . . 2 . . . Intercept . | . . . . . . . . . . . . . . . . . . . . . . . . . . . Searches Triggered . | . . . . . . . . . . . . . . . . . . . . . . . . . . . Construction Impeded 1 | . . . . . . . . . . . . . . . . . . . . . . . 1 . . . Haulers Reinforced . | . . . . . . . . . . . . . . . . . . . . . . . . . . . Active Scanning Responses . | . . . . . . . . . . . . . . . . . . . . . . . . . . . Cargo Convoy Interrupts . | . . . . . . . . . . . . . . . . . . . . . . . . . . . Stealth | -11 -10 -10 -9 -9 -9 -9 -6 -6 -6 -6 -6 -6 -5 -5 -5 -5 -5 -5 -5 -4 -4 -3 -3 -2 -2 -2 --------- Run | Yrd Mat Min Mat Sto Rec Scr Fac Was Fac Low Low Zio Pro Fac Was Fac Upp Upp War Pro Fac Res Tes Res Qua Frg Distress Signals 35 | . 4 . 1 1 . . . . 2 . . . . 3 . 2 . . . . 1 1 3 1 3 13 Communications Jammed . | . . . . . . . . . . . . . . . . . . . . . . . . . . . Distress Signals . | . . . . . . . . . . . . . . . . . . . . . . . . . . . Times Spotted 598 | . 28 5 46 27 4 . 24 6 19 8 . . 6 31 . 38 . 6 16 2 38 19 26 21 12 216 Peak Tracking Total 22 | . 4 2 4 4 1 . 4 6 7 5 . . 6 9 . 9 . 4 9 1 16 6 6 6 9 22 Tactical Retreats 78 | . 1 . 2 . . . 7 . 4 . . . 1 7 . 9 . 1 . . 5 3 4 3 3 28 Traps | -11 -10 -10 -9 -9 -9 -9 -6 -6 -6 -6 -6 -6 -5 -5 -5 -5 -5 -5 -5 -4 -4 -3 -3 -2 -2 -2 ------- Run | Yrd Mat Min Mat Sto Rec Scr Fac Was Fac Low Low Zio Pro Fac Was Fac Upp Upp War Pro Fac Res Tes Res Qua Frg Traps Triggered 25 | . 1 . 2 . . . 2 . 3 . . . . 1 . 4 . . . . . 3 1 3 1 4 Indirectly . | . . . . . . . . . . . . . . . . . . . . . . . . . . . Trap Hack Attempts . | . . . . . . . . . . . . . . . . . . . . . . . . . . . Triggered . | . . . . . . . . . . . . . . . . . . . . . . . . . . . Disarmed . | . . . . . . . . . . . . . . . . . . . . . . . . . . . Reprogrammed 10 | . . . . . . . . . . . . . . . . 4 . . . . . . 1 . . 5 Reused 9 | . . . . . . . . . . . . . . . . 4 . . . . . . . . . 5 Traps Extracted . | . . . . . . . . . . . . . . . . . . . . . . . . . . . Installed . | . . . . . . . . . . . . . . . . . . . . . . . . . . . Triggered 9 | . . . . . . . . . . . . . . . . 4 . . . . . . . . . 5 Machines | -11 -10 -10 -9 -9 -9 -9 -6 -6 -6 -6 -6 -6 -5 -5 -5 -5 -5 -5 -5 -4 -4 -3 -3 -2 -2 -2 ---------- Run | Yrd Mat Min Mat Sto Rec Scr Fac Was Fac Low Low Zio Pro Fac Was Fac Upp Upp War Pro Fac Res Tes Res Qua Frg Machines Disabled 29 | . 2 . 3 3 . . . . 1 . . . . 1 . 5 . . 1 . 1 . 8 . 3 1 Max in Single Turn 2 | . 1 . 1 1 . . . . 1 . . . . 1 . 1 . . 1 . 1 . 2 . 1 . Garrison Access 15 | . . . . 1 . . 3 . 2 . . . . 2 . 1 . . . . 1 1 1 1 1 1 Machines Repaired . | . . . . . . . . . . . . . . . . . . . . . . . . . . . Machines Dismantled 1 | . . . . 1 . . . . . . . . . . . . . . . . . . . . . . Machines Sabotaged . | . . . . . . . . . . . . . . . . . . . . . . . . . . . Overloaded Fab Kills . | . . . . . . . . . . . . . . . . . . . . . . . . . . . Hacking | -11 -10 -10 -9 -9 -9 -9 -6 -6 -6 -6 -6 -6 -5 -5 -5 -5 -5 -5 -5 -4 -4 -3 -3 -2 -2 -2 --------- Run | Yrd Mat Min Mat Sto Rec Scr Fac Was Fac Low Low Zio Pro Fac Was Fac Upp Upp War Pro Fac Res Tes Res Qua Frg Machines Accessed 202 | . 10 1 9 8 10 3 17 . 28 1 1 . 1 29 . 17 1 1 2 . 10 16 11 6 9 11 Terminals 107 | . 7 . 8 6 3 . 8 . 13 . . . 1 14 . 10 1 . . . 4 10 6 4 7 5 Fabricators 18 | . . . . . . . 1 . 3 . . . . 2 . 3 . . . . 2 2 2 1 . 2 Repair Stations 10 | . 1 . . . . . 1 . 1 . . . . 1 . 1 . . . . . 1 2 . . 2 Recycling Units 34 | . 2 . 1 1 7 . 4 . 6 . . . . 6 . 2 . . . . 2 2 . . . 1 Scanalyzers 8 | . . . . . . . . . 3 . . . . 3 . . . . . . 1 . . . 1 . Garrison Access 16 | . . . . 1 . . 3 . 2 . . . . 3 . 1 . . . . 1 1 1 1 1 1 Total Hacks 554 | . 28 1 30 17 19 8 44 . 59 1 1 . 1 80 . 54 2 1 2 . 28 50 32 21 34 41 Successful 323 | . 12 1 17 9 14 8 26 . 31 1 1 . 1 53 . 23 2 1 2 . 19 27 28 11 15 21 Failed 230 | . 16 . 12 8 5 . 18 . 28 . . . . 27 . 31 . . . . 9 23 4 10 19 20 Catastrophic 41 | . 2 . 2 2 . . 4 . 3 . . . . 6 . 5 . . . . 3 3 1 1 6 3 Database Lockouts 1 | . . . 1 . . . . . . . . . . . . . . . . . . . . . . . Manual 324 | . 26 . 26 7 18 . 27 . 25 . . . . 45 . 35 . . 1 . 14 33 14 14 23 16 Terminals 377 | . 24 . 29 14 11 . 29 . 37 . . . 1 50 . 40 2 . . . 14 39 18 13 31 25 Fabricators 58 | . . . . . . . 3 . 6 . . . . 10 . 9 . . . . 8 6 8 4 . 4 Repair Stations 25 | . 2 . . . . . 2 . 2 . . . . 2 . 2 . . . . . 2 5 . . 8 Recycling Units 42 | . 2 . 1 2 8 . 5 . 7 . . . . 9 . 2 . . . . 2 2 . . . 2 Scanalyzers 14 | . . . . . . . . . 5 . . . . 6 . . . . . . 2 . . . 1 . Garrison Access 24 | . . . . 1 . . 5 . 2 . . . . 3 . 1 . . . . 2 1 1 4 2 2 Terminal Hacks 129 | . 1 1 7 2 2 8 12 . 11 1 1 . 1 18 . 6 2 1 2 . 6 15 10 3 9 10 Record 11 | . . . . . . 1 . . . . . . 1 4 . 1 2 . . . . . 1 . 1 . Part Schematic 11 | . . . . . . . 1 . . . . . . 2 . . . . . . 1 4 1 . 2 . Robot Analysis 8 | . 1 . 1 . . 5 . . . . . . . . . . . . . . . . 1 . . . Prototype ID Bank 8 | . . . . . . . 2 . 1 . . . . 3 . . . . . . . . . . 1 1 Open Door 10 | . . 1 . 2 . 1 . . . 1 1 . . . . . . 1 2 . . . . 1 . . Level Access Points 2 | . . . . . . . . . . . . . . . . . . . . . . 1 1 . . . Branch Access Points 7 | . . . 1 . . . 1 . 1 . . . . . . 1 . . . . 1 1 1 . . . Emergency Access Points 1 | . . . . . . . . . . . . . . . . . . . . . . . . . . 1 Machine Index 2 | . . . . . . . . . . . . . . . . . . . . . . 1 . . 1 . Terminal Index 3 | . . . . . . . . . 1 . . . . 1 . 1 . . . . . . . . . . Fabricator Index 2 | . . . . . . . 1 . . . . . . . . . . . . . . . . . . 1 Recycling Unit Index 2 | . . . . . . . . . . . . . . . . . . . . . . 1 . . . 1 Garrison Index 1 | . . . . . . . . . . . . . . . . . . . . . . . . . . 1 Alert Level 2 | . . . . . 1 . . . . . . . . 1 . . . . . . . . . . . . Unreport Threat 4 | . . . 2 . . . . . . . . . . . . . . . . . . . 1 . . 1 Locate Traps 10 | . . . 1 . . . 1 . 1 . . . . 2 . 2 . . . . 1 2 . . . . Reprogram Traps 4 | . . . . . . . . . . . . . . . . 1 . . . . . . 1 . . 2 Transport Status 1 | . . . . . . . . . . . . . . . . . . . . . . . . . . 1 Recall Investigation 1 | . . . . . . . . . 1 . . . . . . . . . . . . . . . . . Recall Extermination 12 | . . . . . . . 1 . 1 . . . . 2 . . . . . . 1 3 . 2 2 . Recall Reinforcements 2 | . . . . . . . . . . . . . . . . . . . . . . . 1 . . 1 Hauler Manifests 10 | . . . 1 . 1 . 2 . 2 . . . . 1 . . . . . . 2 1 . . . . Registered Components 1 | . . . . . . . 1 . . . . . . . . . . . . . . . . . . . Registered Prototypes 1 | . . . . . . . . . . . . . . 1 . . . . . . . . . . . . Zone Layout 11 | . . . 1 . . . 2 . 3 . . . . 1 . . . . . . . 1 1 . 2 . Proto ID Catalog 1 | . . . . . . 1 . . . . . . . . . . . . . . . . . . . . Protovariant Controls 1 | . . . . . . . . . . . . . . . . . . . . . . . 1 . . . Fabricator Hacks 27 | . . . . . . . 2 . 2 . . . . 4 . 5 . . . . 5 2 5 2 . . Network Status 3 | . . . . . . . . . 1 . . . . . . 1 . . . . 1 . . . . . Load Schematic 16 | . . . . . . . 1 . 1 . . . . 3 . 3 . . . . 2 2 3 1 . . Build 8 | . . . . . . . 1 . . . . . . 1 . 1 . . . . 2 . 2 1 . . Repair Station Hacks 21 | . 2 . . . . . 2 . 2 . . . . 2 . 2 . . . . . 2 4 . . 5 Scan Component 10 | . 1 . . . . . 1 . 1 . . . . 1 . 1 . . . . . 1 1 . . 3 Repair 9 | . 1 . . . . . 1 . 1 . . . . 1 . 1 . . . . . 1 1 . . 2 Refit 2 | . . . . . . . . . . . . . . . . . . . . . . . 2 . . . Recycling Unit Hacks 2 | . . . . 2 . . . . . . . . . . . . . . . . . . . . . . Retrieve Components 2 | . . . . 2 . . . . . . . . . . . . . . . . . . . . . . Scanalyzer 13 | . . . . . . . . . 4 . . . . 6 . . . . . . 2 . . . 1 . Insert Component 8 | . . . . . . . . . 2 . . . . 4 . . . . . . 1 . . . 1 . Analyze 5 | . . . . . . . . . 2 . . . . 2 . . . . . . 1 . . . . . Garrison Access Hacks 15 | . . . . 1 . . 3 . 2 . . . . 2 . 1 . . . . 1 1 1 1 1 1 Seal Access 15 | . . . . 1 . . 3 . 2 . . . . 2 . 1 . . . . 1 1 1 1 1 1 Unauthorized Hacks 116 | . 9 . 10 4 12 . 7 . 10 . . . . 21 . 9 . . . . 5 7 8 5 4 5 Terminals 69 | . 7 . 9 4 5 . 3 . 3 . . . . 13 . 4 . . . . 1 3 5 4 4 4 Assimilate 11 | . 1 . . . . . . . . . . . . 5 . 1 . . . . . . 2 2 . . Botnet 36 | . 1 . 3 2 2 . 3 . 3 . . . . 3 . 3 . . . . 1 3 3 2 3 4 Skim 22 | . 5 . 6 2 3 . . . . . . . . 5 . . . . . . . . . . 1 . Fabricators 13 | . . . . . . . . . 1 . . . . 2 . 3 . . . . 2 2 2 1 . . Prioritize 6 | . . . . . . . . . . . . . . 1 . 1 . . . . 2 . 1 1 . . Recompile 7 | . . . . . . . . . 1 . . . . 1 . 2 . . . . . 2 1 . . . Repair Stations 1 | . . . . . . . . . . . . . . . . . . . . . . . 1 . . . Patch 1 | . . . . . . . . . . . . . . . . . . . . . . . 1 . . . Recycling Units 33 | . 2 . 1 . 7 . 4 . 6 . . . . 6 . 2 . . . . 2 2 . . . 1 Tunnel 10 | . 2 . 1 . 7 . . . . . . . . . . . . . . . . . . . . . Fedlink 23 | . . . . . . . 4 . 6 . . . . 6 . 2 . . . . 2 2 . . . 1 Scanalyzers . | . . . . . . . . . . . . . . . . . . . . . . . . . . . Garrison Access . | . . . . . . . . . . . . . . . . . . . . . . . . . . . Data Cores Recovered 4 | . . . . . . . 1 . . . . . . 1 . . . . . . . . . . . 2 Used 1 | . . . . . . . . . . . . . . . . . . . . . . . . . . 1 Hacking Detections 135 | . 7 . 7 8 3 . 11 . 18 . . . . 19 . 11 1 . . . 7 12 8 4 8 11 Full Trace Events 5 | . 1 . 1 1 . . . . . . . . . 1 . . . . . . . . 1 . . . Feedback Events . | . . . . . . . . . . . . . . . . . . . . . . . . . . . Feedback Blocked 1 | . . . . . . . . . . . . . . 1 . . . . . . . . . . . . Robot Schematics Acquired 5 | . . . . . . . . . . . . 4 . . . . . . . . . . 1 . . . Robots Built . | . . . . . . . . . . . . . . . . . . . . . . . . . . . Authchips . | . . . . . . . . . . . . . . . . . . . . . . . . . . . Time . | . . . . . . . . . . . . . . . . . . . . . . . . . . . Total Robot Build Rating . | . . . . . . . . . . . . . . . . . . . . . . . . . . . Part Schematics Acquired 32 | . . . . . . . 1 . 2 . . 15 . 3 . . . . . . 2 4 3 . 2 . Parts Built 9 | . . . . . . . 1 . . . . . . 1 . 1 . . . . 2 . 3 1 . . Authchips 8 | . . . . . . . 1 . . . . . . 1 . 1 . . . . 2 . 2 1 . . Time 272 | . . . . . . . 44 . . . . . . 38 . 26 . . . . 76 . 50 38 . . Total Part Build Rating 51 | . . . . . . . 4 . . . . . . 5 . 6 . . . . 10 . 21 5 . . Parts Repaired 8 | . 1 . . . . . 1 . 1 . . . . 1 . 1 . . . . . 1 1 . . 1 Time 276 | . 13 . . . . . 38 . 43 . . . . 40 . 38 . . . . . 19 40 . . 45 Parts Recycled . | . . . . . . . . . . . . . . . . . . . . . . . . . . . Recycled Matter . | . . . . . . . . . . . . . . . . . . . . . . . . . . . Retrieved Matter . | . . . . . . . . . . . . . . . . . . . . . . . . . . . Retrieved Components . | . . . . . . . . . . . . . . . . . . . . . . . . . . . Parts Scanalyzed 4 | . . . . . . . . . 2 . . . . 1 . . . . . . 1 . . . . . Part Schematics Acquired 4 | . . . . . . . . . 2 . . . . 1 . . . . . . 1 . . . . . Parts Damaged . | . . . . . . . . . . . . . . . . . . . . . . . . . . . Bothacking | -11 -10 -10 -9 -9 -9 -9 -6 -6 -6 -6 -6 -6 -5 -5 -5 -5 -5 -5 -5 -4 -4 -3 -3 -2 -2 -2 ------------ Run | Yrd Mat Min Mat Sto Rec Scr Fac Was Fac Low Low Zio Pro Fac Was Fac Upp Upp War Pro Fac Res Tes Res Qua Frg Used RIF Installer . | . . . . . . . . . . . . . . . . . . . . . . . . . . . Robots Hacked . | . . . . . . . . . . . . . . . . . . . . . . . . . . . Non-combat . | . . . . . . . . . . . . . . . . . . . . . . . . . . . Combat . | . . . . . . . . . . . . . . . . . . . . . . . . . . . Robot Hacks Applied . | . . . . . . . . . . . . . . . . . . . . . . . . . . . Relay Couplers Released . | . . . . . . . . . . . . . . . . . . . . . . . . . . . Fabnet Peak Effective % . | . . . . . . . . . . . . . . . . . . . . . . . . . . . Robots Rewired . | . . . . . . . . . . . . . . . . . . . . . . . . . . . Allies Hacked 1 | . . . . . . . . . . . . . . . . . . . . . . . . 1 . . Hacks Repelled . | . . . . . . . . . . . . . . . . . . . . . . . . . . . Allies | -11 -10 -10 -9 -9 -9 -9 -6 -6 -6 -6 -6 -6 -5 -5 -5 -5 -5 -5 -5 -4 -4 -3 -3 -2 -2 -2 -------- Run | Yrd Mat Min Mat Sto Rec Scr Fac Was Fac Low Low Zio Pro Fac Was Fac Upp Upp War Pro Fac Res Tes Res Qua Frg Total Allies 22 | . 1 3 . 10 . . . . . . . . . 3 . . . . . . . . 1 2 . 2 Largest Group 10 | . 1 3 . 10 10 8 5 . . . . . . 1 . . . . . . . . 1 1 . 2 Highest-Rated Group 192 | . 9 40 . 88 88 72 48 . . . . . . 26 . . . . . . . . 26 26 . 192 Highest-Rated Ally 96 | . 9 16 . 16 16 16 16 . . . . . . 26 . . . . . . . . 26 26 . 96 Total Orders 2 | . . . . 2 . . . . . . . . . . . . . . . . . . . . . . STAY 1 | . . . . 1 . . . . . . . . . . . . . . . . . . . . . . FOLLOW 1 | . . . . 1 . . . . . . . . . . . . . . . . . . . . . . Ally Attacks 44 | . . 5 . . 11 . 14 . . . . . . . . . . . . . . . . . . 14 Total Damage 698 | . . 43 . . 105 . 141 . . . . . . . . . . . . . . . . . . 409 Kills 7 | . . 1 . . 4 . 2 . . . . . . . . . . . . . . . . . . . Allies Corrupted . | . . . . . . . . . . . . . . . . . . . . . . . . . . . Allies Melted 3 | . . . . . . . . . . . . . . . . . . . 1 . . . . . . 2 Intel | -11 -10 -10 -9 -9 -9 -9 -6 -6 -6 -6 -6 -6 -5 -5 -5 -5 -5 -5 -5 -4 -4 -3 -3 -2 -2 -2 ------- Run | Yrd Mat Min Mat Sto Rec Scr Fac Was Fac Low Low Zio Pro Fac Was Fac Upp Upp War Pro Fac Res Tes Res Qua Frg Active Infowar (turns) 19096 | 239 967 44 158 1330 1335 3093 1246 60 1218 247 108 246 247 1213 68 1157 154 157 430 172 639 1190 579 605 303 1891 Optics 11920 | . . . . . . . 1237 60 1218 247 108 246 247 1213 68 1157 154 157 430 172 639 1190 579 605 303 1890 Sensors 11145 | . . . . . . 1526 1246 60 1218 246 . . . 1200 68 1134 154 157 430 172 639 1190 563 605 303 234 Structural 10736 | . . . . . . . 1232 60 1218 247 108 246 247 1213 68 1142 154 157 269 172 636 1011 562 605 303 1086 Seismic 5640 | 239 967 44 158 1330 1335 1567 . . . . . . . . . . . . . . . . . . . . ECM 1280 | . . . . . . . 14 . . . . . . 50 . 33 2 . . . 134 455 63 219 133 177 Robot Analysis Total 8 | . 1 . 1 . . 5 . . . . . . . . . . . . . . . . 1 . . . Derelict Logs Recovered 10 | . . 2 . . . . . . . 2 . 1 3 . . . 2 . . . . . . . . . Drone Launches . | . . . . . . . . . . . . . . . . . . . . . . . . . . . Drone Recoveries . | . . . . . . . . . . . . . . . . . . . . . . . . . . . Exploration | -11 -10 -10 -9 -9 -9 -9 -6 -6 -6 -6 -6 -6 -5 -5 -5 -5 -5 -5 -5 -4 -4 -3 -3 -2 -2 -2 ------------- Run | Yrd Mat Min Mat Sto Rec Scr Fac Was Fac Low Low Zio Pro Fac Was Fac Upp Upp War Pro Fac Res Tes Res Qua Frg Turns Passed 24258 | 386 1416 1382 1978 1859 1335 3971 1246 60 1218 247 108 246 247 1213 68 1157 154 157 430 172 639 1190 579 605 303 1892 Spaces Moved 37130 | 166 685 613 934 680 534 1489 2789 158 3803 839 374 761 798 3214 244 2795 521 495 1113 520 1856 2936 1263 1860 950 4740 Core 25 | 5 . . . . . 20 . . . . . . . . . . . . . . . . . . . . Treads 5027 | 161 685 613 934 680 534 1420 . . . . . . . . . . . . . . . . . . . . Legs . | . . . . . . . . . . . . . . . . . . . . . . . . . . . Wheels . | . . . . . . . . . . . . . . . . . . . . . . . . . . . Hover . | . . . . . . . . . . . . . . . . . . . . . . . . . . . Flight 32078 | . . . . . . 49 2789 158 3803 839 374 761 798 3214 244 2795 521 495 1113 520 1856 2936 1263 1860 950 4740 Fastest Speed 5 | 50 160 160 160 160 240 240 26 21 25 17 17 27 27 17 27 5 27 27 27 27 14 14 14 11 11 11 Average Speed 51 | 156 160 160 160 224 240 261 27 27 26 26 26 28 27 26 27 26 27 27 30 27 23 23 23 19 19 28 Slowest Speed 1500 | 160 160 160 240 240 240 1500 31 28 30 27 27 162 99 104 27 176 27 107 107 102 24 98 24 20 20 113 Overloaded Moves 277 | . . . . . . . . 5 . 11 3 . . 11 . 10 . . . . 7 128 3 11 10 78 Propulsion Burnouts . | . . . . . . . . . . . . . . . . . . . . . . . . . . . Robots Hopped 142 | . . . . . . . 18 . 11 2 . . 6 19 . 14 . . . . 13 13 3 9 . 34 Potential Cave-ins 9 | . . . . . . . . . . . . . . . . . . 2 . . . . . . . 7 Cave-ins Triggered . | . . . . . . . . . . . . . . . . . . . . . . . . . . . Exploration Rate (%) 75 | 9 97 94 91 92 89 86 68 98 78 84 65 81 88 72 95 59 78 59 93 72 46 63 94 29 79 68 Regions Visited 26 Branch Regions 15 Pre-discovered Areas 18 | . 3 . 4 . 7 . 1 . . . . 3 . . . . . . . . . . . . . . Known Exits Taken 20 | . . 1 1 1 1 1 . . 1 1 1 1 1 . . 1 1 1 1 1 1 1 1 1 1 . Unknown Exits Taken 2 | 1 1 . . . . . . . . . . . . . . . . . . . . . . . . . Scrap Searched 27 | . . 1 . . . 7 . . . 4 3 2 4 . . . 4 . . 2 . . . . . . Spaces Dug 537 | . . . . 1 . . 41 . 38 2 1 . 48 56 . 81 2 37 . . 27 47 20 38 69 29 Terrain Destroyed 870 | . 34 . . 1 . . 41 . 49 55 1 . 89 70 . 81 2 87 . 17 62 47 70 64 69 31 Melee 337 | . . . . 1 . . 41 . 38 2 1 . . 56 . 39 2 . . . 21 47 15 38 8 28 Projectile 3 | . . . . . . . . . . . . . . . . . . . . . . . . . . 3 AOE 530 | . 34 . . . . . . . 11 53 . . 89 14 . 42 . 87 . 17 41 . 55 26 61 . Terrain Rammed . | . . . . . . . . . . . . . . . . . . . . . . . . . . . Walls Destroyed . | . . . . . . . . . . . . . . . . . . . . . . . . . . . Machines Disabled . | . . . . . . . . . . . . . . . . . . . . . . . . . . . Actions | -11 -10 -10 -9 -9 -9 -9 -6 -6 -6 -6 -6 -6 -5 -5 -5 -5 -5 -5 -5 -4 -4 -3 -3 -2 -2 -2 --------- Run | Yrd Mat Min Mat Sto Rec Scr Fac Was Fac Low Low Zio Pro Fac Was Fac Upp Upp War Pro Fac Res Tes Res Qua Frg Total 40937 | 222 887 979 1197 850 579 1569 3139 174 3921 851 379 791 811 3438 244 3108 532 511 1199 543 1989 3305 1484 2009 1048 5178 Wait 2105 | . 108 331 33 45 29 45 247 14 33 6 . 10 . 130 . 208 . 3 61 16 96 241 137 87 66 159 Move 36834 | 165 684 612 933 679 533 1488 2753 157 3780 834 373 760 785 3178 243 2767 520 494 1112 519 1829 2909 1256 1841 949 4681 Hop 129 | . . . . . . . 18 . 11 2 . . 6 17 . 13 . . . . 13 12 3 9 . 25 Pick Up 135 | 7 4 9 30 6 4 4 7 1 4 1 . 2 2 10 . 9 1 1 3 . 3 8 7 2 2 8 Fast Attach 126 | 7 3 . 9 3 . 4 6 . 12 1 1 3 . 4 . 5 3 . 8 . . 8 4 1 2 42 Attach 100 | . 3 4 4 3 . 5 13 . 3 1 1 4 4 5 . 10 . 3 1 1 8 4 9 5 6 3 Detach 82 | . 1 . 4 2 1 6 3 . 5 1 1 6 4 . . 7 1 3 1 1 2 7 5 2 6 13 Swap 112 | . 1 3 19 12 2 1 9 . 1 . 1 2 . 9 1 14 1 . 2 . 6 8 14 3 . 3 Drop 194 | . 1 . 41 12 4 16 15 2 11 . 1 3 . 10 . 11 4 1 10 . 1 9 9 2 2 29 Fire 376 | 41 80 18 118 69 4 . . . 1 3 . . 7 2 . 3 . 4 1 1 4 . 2 3 4 11 Melee 579 | . . . . 7 . . 68 . 53 2 1 1 3 66 . 53 2 2 . 5 27 75 35 48 11 120 Ram . | . . . . . . . . . . . . . . . . . . . . . . . . . . . Kick . | . . . . . . . . . . . . . . . . . . . . . . . . . . . Crush 18 | 2 2 2 6 4 2 . . . . . . . . . . . . . . . . . . . . . Escape Stasis 49 | . . . . . . . . . 7 . . . . . . 7 . . . . . 24 1 6 . 4 Rewire 8 | . . . . . . . . . . . . . . 6 . . . . . . . . 2 . . . Trap . | . . . . . . . . . . . . . . . . . . . . . . . . . . . Miscellaneous 90 | . . . . 8 . . . . . . . . . 1 . 1 . . . . . . . . . 80 Route ------- -11/Scrapyard -10/Materials (discovered 5 exits: *Mat x3 / *Min x2) -10/Mines (discovered 3 exits: *Mat / [*Exi] / *Sub) -9/Materials (discovered 7 exits: *Mat x3 / *Min x2 / *Sto x2) -9/Storage (discovered 2 exits: *Mat / *Rec) -9/Recycling (discovered 2 exits: *Fac / *Scr) -9/Scraptown (discovered 2 exits: *Fac x2) -6/Factory (discovered 6 exits: *Fac x4 / *Low x2) -6/Waste -6/Factory (discovered 5 exits: *Fac x3 / *Low x2) -6/Lower Caves -6/Lower Caves -6/Zion -5/Proximity Caves -5/Factory (discovered 7 exits: *Fac x3 / *Upp x2 / *Ext x2) -5/Waste -5/Factory (discovered 5 exits: *Fac / *Upp x2 / *Ext x2) -5/Upper Caves -5/Upper Caves -5/Warlord -4/Proximity Caves -4/Factory (discovered 5 exits: *Res x3 / Upp x2) -3/Research (discovered 6 exits: *Res x3 / *Arm / *Tes x2) -3/Testing -2/Research -2/Quarantine (discovered 3 exits: *Acc / [*Sec] / *Frg) -2/Protoforge (discovered 1 exit: *Acc) History --------- Turn | Location | Event 3 | -11/Scrapyard | Discovered new exit (range 15) 387 | -11/Scrapyard | Entered Materials 388 | -10/Materials | Build established: Mutant 673 | -10/Materials | Discovered new exit (range 13) 812 | -10/Materials | Discovered new exit (range 3) 1069 | -10/Materials | Repaired Lgt. Treads 1237 | -10/Materials | Discovered new exit (range 6) 1297 | -10/Materials | Core integrity fell below 50% 1328 | -10/Materials | Discovered new exit (range 16) 1421 | -10/Materials | Identified exit to Materials 1460 | -10/Materials | Learned 4 Recycling zone layouts 1491 | -10/Materials | Learned location of 2 exits from Mines 1511 | -10/Materials | Learned location of Subcaves (-10) 1537 | -10/Materials | Learned 4 Subcaves zone layouts 1803 | -10/Materials | Entered Mines 1804 | -10/Mines | Identified exit to Subcaves 1863 | -10/Mines | Learned Materials garrison access intel 1891 | -10/Mines | Received a Rocket Launcher from a helpful Derelict 1935 | -10/Mines | Assembled infested the area 2290 | -10/Mines | Assisted by bots powering up and referring to "LRC-V3" 2346 | -10/Mines | Learned 2 Materials zone layouts 2669 | -10/Mines | Core integrity fell below 20% 2686 | -10/Mines | Lost 3 allies 2691 | -10/Mines | Lost 3 parts (1p2n) 2808 | -10/Mines | Deemed a non-threat by the Exiles lab entrance 2810 | -10/Mines | Discovered new exit (range 5) 2932 | -10/Mines | Met a Derelict who couldn't figure out how to use a Trap Extractor 3185 | -10/Mines | Entered Materials 3185 | -9/Materials | Evolved 2 slots: Propulsion x1, Utility x1 3186 | -9/Materials | Identified exit to Materials 3186 | -9/Materials | Identified exit to Mines 3200 | -9/Materials | Discovered new exit (range 16) 3507 | -9/Materials | Identified exit to Storage 3507 | -9/Materials | Central database locked down 3614 | -9/Materials | Build established: Scavenger-Mutant 4310 | -9/Materials | Learned 2 Storage zone layouts 4384 | -9/Materials | Discovered exit to Materials (range 15) 4411 | -9/Materials | Learned Storage trap positions 4445 | -9/Materials | Learned location of Zion (-6) 4468 | -9/Materials | Learned location of 1 exit from Materials 4551 | -9/Materials | Learned Materials emergency access door positions 5163 | -9/Materials | Entered Storage 5164 | -9/Storage | Identified exit to Recycling 5165 | -9/Storage | Loaded intel: 16 trap records 5976 | -9/Storage | Build established: Mutant 6306 | -9/Storage | Discovered exit to Materials (range 14) 6430 | -9/Storage | Assisted by bots powering up and referring to "LRC-V3" 6718 | -9/Storage | Build established: Commander-Mutant 6982 | -9/Storage | Used back door to open Recycling access 7022 | -9/Storage | Entered Recycling 7022 | -9/Recycling | Accompanied by 10 allies 7023 | -9/Recycling | Identified exit to Factory 7023 | -9/Recycling | Identified exit to Scraptown 8269 | -9/Recycling | Scanned before Scraplab entrance 8304 | -9/Recycling | Entered Scraplab 8357 | -9/Recycling | Entered Scraptown 8357 | -9/Scraptown | Accompanied by 8 allies 8357 | -9/Scraptown | System corruption cleaned by C-Scrubber 8705 | -9/Scraptown | Discovered new exit (range 11) 8943 | -9/Scraptown | Visited Science Testing Area 8962 | -9/Scraptown | Visited Awakened 9286 | -9/Scraptown | Visited Comm Corps 9356 | -9/Scraptown | Visited Bundlers 9567 | -9/Scraptown | Visited TADAMA 9596 | -9/Scraptown | Visited Shadow of the Wyrm 9610 | -9/Scraptown | Visited CR-KLE's Repair Center 9641 | -9/Scraptown | Visited UFD Registry 9641 | -9/Scraptown | Registered with UFD as "Pulsebrain" 9725 | -9/Scraptown | Visited Scrapoid Research Area 9764 | -9/Scraptown | Visited Science Guys 9857 | -9/Scraptown | Visited Observation Area 9951 | -9/Scraptown | Visited LU-1G1's Boring Crew 9977 | -9/Scraptown | Visited Sword Containment 10008 | -9/Scraptown | Visited Scrap Suit Storage 10040 | -9/Scraptown | Visited Junk Repository 10097 | -9/Scraptown | Visited Analyses Database 10157 | -9/Scraptown | Visited Junk Repository 10223 | -9/Scraptown | Visited Chapter 10 11294 | -9/Scraptown | CR-KLE repaired 5 parts 12196 | -9/Scraptown | Met Optimus 12196 | -9/Scraptown | Accepted into 0bPrime 12318 | -9/Scraptown | Discovered new exit (range 5) 12325 | -9/Scraptown | Identified exit to Factory 12328 | -9/Scraptown | Entered Factory 12328 | -6/Factory | Accompanied by 5 allies 12328 | -6/Factory | Evolved 6 slots: Propulsion x2, Utility x4 12371 | -6/Factory | Discovered new exit (range 22) 12437 | -6/Factory | Identified exit to Factory 12447 | -6/Factory | Lost 3 allies 12649 | -6/Factory | Discovered exit to Factory (range 12) 12699 | -6/Factory | Build established: Hacker-Scout 12734 | -6/Factory | Identified exit to Lower Caves 12819 | -6/Factory | Fabricated Cld. VTOL Module? 12868 | -6/Factory | Loaded intel: 8 recycling unit locations 12919 | -6/Factory | Learned location of Protoforge (-2) 13240 | -6/Factory | Discovered exit to Factory (range 6) 13323 | -6/Factory | Repaired Imp. Light Armor Plating 13444 | -6/Factory | Discovered exit to Factory (range 6) 13574 | -6/Factory | Sucked down chute 13574 | -6/Factory | Entered Waste 13582 | -6/Waste | Spotted C-40 Crusher 13584 | -6/Waste | Spotted C-40 Crusher 13589 | -6/Waste | EMP discharged 13589 | -6/Waste | System corruption reached 10% 13605 | -6/Waste | Spotted C-40 Crusher 13613 | -6/Waste | Spotted C-40 Crusher 13625 | -6/Waste | Spotted C-40 Crusher 13626 | -6/Waste | Spotted C-40 Crusher 13630 | -6/Waste | Discovered new exit (range 14) 13634 | -6/Waste | Identified exit to Factory 13634 | -6/Waste | Entered Factory 13682 | -6/Factory | Discovered exit to Lower Caves (range 6) 13707 | -6/Factory | Spotted B-75 Beast 13708 | -6/Factory | Discovered exit to Factory (range 17) 13709 | -6/Factory | Loaded intel: 8 recycling unit locations 13725 | -6/Factory | Found Prototype Processor 13725 | -6/Factory | Identified Exp. Targeting Computer 13930 | -6/Factory | Discovered exit to Factory (range 12) 14115 | -6/Factory | Repaired Corrupted Field Propulsion Array? 14781 | -6/Factory | Discovered exit to Factory (range 20) 14852 | -6/Factory | Entered Lower Caves 14951 | -6/Lower Caves | Learned Factory trap positions 14975 | -6/Lower Caves | Spotted B-75 Beast 15037 | -6/Lower Caves | Learned 12 Factory zone layouts 15083 | -6/Lower Caves | Discovered new exit (range 20) 15099 | -6/Lower Caves | Identified exit to Lower Caves 15099 | -6/Lower Caves | Entered another Lower Caves area 15205 | -6/Lower Caves | Discovered new exit (range 10) 15207 | -6/Lower Caves | Identified exit to Zion 15207 | -6/Lower Caves | Entered Zion 15222 | -6/Zion | System corruption cleaned by Quarantine Array 15229 | -6/Zion | Discovered new exit (range 15) 15238 | -6/Zion | Received a visual enhancement algorithm 15260 | -6/Zion | Learned location of Warlord (-5) 15304 | -6/Zion | Given A8's code to call for help 15313 | -6/Zion | Learned 4 Factory zone layouts 15315 | -6/Zion | Learned Factory garrison access intel 15367 | -6/Zion | Found Prototype Processor 15367 | -6/Zion | Identified Exp. Signal Interpreter 15372 | -6/Zion | Found Prototype Hackware 15372 | -6/Zion | Identified Exp. System Shield 15392 | -6/Zion | Visited the Megawrench Repair Shop 15399 | -6/Zion | Build established: Hacker-Sprinter 15420 | -6/Zion | Megawrench repaired 9 parts 15452 | -6/Zion | Identified exit to Proximity Caves 15453 | -6/Zion | Entered Proximity Caves 15559 | -5/Proximity Caves | Spotted B-75 Beast 15639 | -5/Proximity Caves | Learned Factory terminal intel 15642 | -5/Proximity Caves | Learned 4 Factory zone layouts 15673 | -5/Proximity Caves | Discovered exit to Factory (range 9) 15678 | -5/Proximity Caves | Learned 8 Factory zone layouts 15700 | -5/Proximity Caves | Entered Factory 15700 | -5/Factory | Evolved 2 slots: Utility x2 15701 | -5/Factory | Identified exit to Extension 15701 | -5/Factory | Identified exit to Upper Caves 15701 | -5/Factory | Identified exit to Factory 15702 | -5/Factory | Loaded intel: 72 trap records 15703 | -5/Factory | Loaded intel: 28 terminal locations 15704 | -5/Factory | Loaded intel: 4 garrison access locations 15778 | -5/Factory | Fabricated Cld. Cesium-ion Thruster? 15812 | -5/Factory | Spotted B-75 Beast 15820 | -5/Factory | Loaded intel: 8 recycling unit locations 15876 | -5/Factory | Repaired Cld. Cesium-ion Thruster? 16049 | -5/Factory | Build established: Hacker-Scout 16864 | -5/Factory | Learned Quarantine emergency access door positions 16913 | -5/Factory | Manually triggered Chute Trap 16913 | -5/Factory | Sucked down chute 16913 | -5/Factory | Entered Waste 16913 | -5/Waste | The area was eerily silent 16945 | -5/Waste | Discovered new exit (range 22) 16978 | -5/Waste | Identified exit to Factory 16981 | -5/Waste | Entered Factory 17021 | -5/Factory | Fabricated Adv. Hacking Suite? 17277 | -5/Factory | Discovered exit to Factory (range 3) 17721 | -5/Factory | Build established: Hacker-Ninja 17817 | -5/Factory | Repaired Imp. Light Armor Plating 17981 | -5/Factory | Loaded intel: 8 recycling unit locations 18138 | -5/Factory | Entered Upper Caves 18140 | -5/Upper Caves | Found DCF Scrap (13 items) 18158 | -5/Upper Caves | Learned 4 Factory zone layouts 18161 | -5/Upper Caves | Learned Factory trap positions 18261 | -5/Upper Caves | Discovered new exit (range 20) 18280 | -5/Upper Caves | Identified exit to Upper Caves 18292 | -5/Upper Caves | Entered another Upper Caves area 18302 | -5/Upper Caves | Encountered a Warlord checkpoint 18337 | -5/Upper Caves | Build established: Hacker-Scout 18445 | -5/Upper Caves | Discovered new exit (range 10) 18447 | -5/Upper Caves | Identified exit to Warlord 18449 | -5/Upper Caves | Entered Warlord 18459 | -5/Warlord | System corruption cleaned by Quarantine Array 18490 | -5/Warlord | Received a Watcher feed algorithm from an ecstatic Tinkerer 18503 | -5/Warlord | Ran a Watcher feed algorithm 18605 | -5/Warlord | Visited the Vortex Lab 18607 | -5/Warlord | Found Prototype Energy Cannon 18607 | -5/Warlord | Identified Vortex Cannon 18615 | -5/Warlord | Warlord's base attacked by MAIN.C 18672 | -5/Warlord | Found Prototype Hackware 18672 | -5/Warlord | Identified Ghost Barrier 18682 | -5/Warlord | Rebuked by Warlord 18818 | -5/Warlord | Found Prototype Processor 18818 | -5/Warlord | Identified Exp. Target Analyzer 18821 | -5/Warlord | Found Prototype Device 18821 | -5/Warlord | Identified Exp. Focal Shield 18834 | -5/Warlord | Lost 4 allies 18872 | -5/Warlord | Opened side exit 18878 | -5/Warlord | Discovered new exit (range 9) 18879 | -5/Warlord | Identified exit to Proximity Caves 18879 | -5/Warlord | Entered Proximity Caves 18948 | -4/Proximity Caves | Spotter reported a threat 18969 | -4/Proximity Caves | Spotter reported a threat 18986 | -4/Proximity Caves | Build established: Wizard-Scout 19031 | -4/Proximity Caves | Spotted B-86 Titan 19039 | -4/Proximity Caves | Discovered exit to Factory (range 9) 19051 | -4/Proximity Caves | Entered Factory 19051 | -4/Factory | Evolved 2 slots: Propulsion x1, Utility x1 19052 | -4/Factory | Identified exit to Research 19053 | -4/Factory | Loaded intel: 91 trap records 19107 | -4/Factory | Spotted B-86 Titan 19262 | -4/Factory | Fabricated Exp. Propulsion Shielding (x1) 19362 | -4/Factory | Identified exit to Upper Caves 19392 | -4/Factory | Fabricated Cld. Cesium-ion Thruster? 19413 | -4/Factory | Spotted B-86 Titan 19658 | -4/Factory | Discovered exit to Research (range 5) 19675 | -4/Factory | Loaded intel: 8 recycling unit locations 19690 | -4/Factory | Entered Research 19690 | -3/Research | Evolved 2 slots: Power x1, Utility x1 19702 | -3/Research | Spotted B-86 Titan 19875 | -3/Research | Identified exit to Research 19976 | -3/Research | Repaired Imp. Light Armor Plating 20015 | -3/Research | Loaded intel: 5 recycling unit locations 20051 | -3/Research | Identified exit to Armory 20051 | -3/Research | Identified exit to Testing 20080 | -3/Research | Spotted B-86 Titan 20470 | -3/Research | Spotted B-86 Titan 20733 | -3/Research | Build established: Wizard-Ninja 20880 | -3/Research | Entered Testing 20889 | -3/Testing | Found Prototype Energy Gun 20889 | -3/Testing | Identified Tachyon Dispersion Ray 20915 | -3/Testing | Found Prototype Ballistic Gun 20915 | -3/Testing | Identified Hyp. Multirail 20931 | -3/Testing | Found Prototype Energy Gun 20931 | -3/Testing | Identified Hyp. EM Gauss Rifle 21013 | -3/Testing | Fabricated Exp. Melee Analysis Suite? 21027 | -3/Testing | Repaired Cld. Cesium-ion Thruster 21069 | -3/Testing | Fabricated Nanoactuators? 21094 | -3/Testing | Build established: Wizard-Scout 21167 | -3/Testing | Spotted PP-1FWX1K4DUV 21168 | -3/Testing | Protovariant out of control (PP-1FWX1K4DUV) 21168 | -3/Testing | Unleashed a protovariant (PP-1FWX1K4DUV) 21184 | -3/Testing | Garrison activated, responded to threat 21207 | -3/Testing | Scanned by Researcher 21331 | -3/Testing | Discovered exit to Research (range 12) 21459 | -3/Testing | Entered Research 21459 | -2/Research | Evolved 2 slots: Propulsion x1, Utility x1 21465 | -2/Research | Spotted B-90 Cyclops 21507 | -2/Research | Spotted B-90 Cyclops 21705 | -2/Research | Fabricated Exp. Utility Shielding (x1) 21754 | -2/Research | Spotted B-90 Cyclops 21759 | -2/Research | Build established: Wizard-Ninja 21920 | -2/Research | Discovered new exit (range 8) 21921 | -2/Research | Identified exit to Quarantine 22056 | -2/Research | Spotted B-90 Cyclops 22064 | -2/Research | Entered Quarantine 22065 | -2/Quarantine | Forged Quantum Companion 22066 | -2/Quarantine | Build established: Hacker-Ninja 22077 | -2/Quarantine | Cryocooling Duct disabled 22092 | -2/Quarantine | Ambient heat levels rising (+20) 22092 | -2/Quarantine | Non-combat units ordered to evacuate 22144 | -2/Quarantine | Found Alien Artifact 22146 | -2/Quarantine | Identified Subatomic Replicator 22146 | -2/Quarantine | Forged Prototype Slashing Weapon 22286 | -2/Quarantine | Discovered new exit (range 21) 22315 | -2/Quarantine | Found Alien Artifact 22343 | -2/Quarantine | Spotted Fortress 22366 | -2/Quarantine | Discovered new exit (range 5) 22366 | -2/Quarantine | Discovered new exit (range 6) 22367 | -2/Quarantine | Identified exit to Protoforge 22367 | -2/Quarantine | Entered Protoforge 22378 | -2/Protoforge | Superfortress began startup sequence 22417 | -2/Protoforge | Repaired Imp. Light Armor Plating 22449 | -2/Protoforge | Spotted B-90 Cyclops 22451 | -2/Protoforge | Spotted Hotshot 22453 | -2/Protoforge | Spotted Hotshot 22456 | -2/Protoforge | Spotted Hotshot 22456 | -2/Protoforge | Spotted Hotshot 22461 | -2/Protoforge | Enhanced Grunt warped into view, answering call for help 22464 | -2/Protoforge | Enhanced Grunt warped into view, answering call for help 22524 | -2/Protoforge | Spotted Hotshot 22574 | -2/Protoforge | Spotted Hotshot 22577 | -2/Protoforge | Discovered new exit (range 17) 22580 | -2/Protoforge | Identified exit to Access 22660 | -2/Protoforge | Spotted V201-k 22673 | -2/Protoforge | System corruption reached 10% 22689 | -2/Protoforge | Spotted EXE-6 22689 | -2/Protoforge | Spotted EXE-6 22694 | -2/Protoforge | Spotted SKR-2 22698 | -2/Protoforge | UFD initiated attack on Protoforge 22698 | -2/Protoforge | Loaded intel: 3 recycling unit locations 22715 | -2/Protoforge | Found Prototype Processor 22715 | -2/Protoforge | Identified Exp. Core Analyzer 22717 | -2/Protoforge | Found Prototype Device 22717 | -2/Protoforge | Identified Exp. Kinecellerator 22722 | -2/Protoforge | Lost 4 parts (1p1n2u) 22728 | -2/Protoforge | Found Exp. Core Analyzer 22734 | -2/Protoforge | Optimus greeted in Protoforge 22769 | -2/Protoforge | Found UFD Drillbomb 22782 | -2/Protoforge | Spotted EXE-6 22782 | -2/Protoforge | Spotted EXE-6 22788 | -2/Protoforge | Found Exp. Melee Analysis Suite 22791 | -2/Protoforge | Destroyed EXE-6 22793 | -2/Protoforge | Destroyed EXE-6 22797 | -2/Protoforge | Found Exp. Core Analyzer 22815 | -2/Protoforge | Spotted AP7-3 22820 | -2/Protoforge | Spotted AP7-3 22840 | -2/Protoforge | Destroyed AP7-3 22841 | -2/Protoforge | Destroyed AP7-3 22856 | -2/Protoforge | Installed UFD Drillbomb at designated target 22856 | -2/Protoforge | UFD reported confirmed Drillbomb installation 22886 | -2/Protoforge | Found UFD Drillbomb 22888 | -2/Protoforge | Met 7R-MNS 22914 | -2/Protoforge | Spotted Striker 22930 | -2/Protoforge | Installed UFD Drillbomb at designated target 22930 | -2/Protoforge | UFD reported confirmed Drillbomb installation 22932 | -2/Protoforge | Destroyed Hotshot 22940 | -2/Protoforge | Destroyed Hotshot 22943 | -2/Protoforge | Found UFD Drillbomb 22953 | -2/Protoforge | Spotted Hotshot 22953 | -2/Protoforge | Spotted Hotshot 22969 | -2/Protoforge | Lost 8 allies 22974 | -2/Protoforge | Destroyed Hotshot 22976 | -2/Protoforge | Destroyed Hotshot 23012 | -2/Protoforge | Destroyed Hotshot 23016 | -2/Protoforge | Build established: Scavenger-Sprinter 23017 | -2/Protoforge | Destroyed Hotshot 23021 | -2/Protoforge | Spotted Executioner 23022 | -2/Protoforge | Spotted Striker 23026 | -2/Protoforge | Spotted Overlord 23029 | -2/Protoforge | Installed UFD Drillbomb at designated target 23029 | -2/Protoforge | UFD reported confirmed Drillbomb installation 23041 | -2/Protoforge | Found UFD Drillbomb 23071 | -2/Protoforge | Spotted Striker 23075 | -2/Protoforge | Installed UFD Drillbomb at designated target 23075 | -2/Protoforge | UFD reported confirmed Drillbomb installation 23118 | -2/Protoforge | Found UFD Drillbomb 23148 | -2/Protoforge | Forge Plexus network access discovered 23159 | -2/Protoforge | Spotted Executioner 23162 | -2/Protoforge | Spotted Striker 23192 | -2/Protoforge | Destroyed Striker 23192 | -2/Protoforge | Spotted Executioner 23224 | -2/Protoforge | Installed UFD Drillbomb at designated target 23224 | -2/Protoforge | UFD reported confirmed Drillbomb installation 23233 | -2/Protoforge | Lost 8 allies 23244 | -2/Protoforge | Spotted Executioner 23266 | -2/Protoforge | Found Exp. Core Analyzer 23307 | -2/Protoforge | Found UFD Drillbomb 23347 | -2/Protoforge | Found Exp. System Purifier 23372 | -2/Protoforge | Spotted Executioner 23382 | -2/Protoforge | Spotted Striker 23386 | -2/Protoforge | Lost 4 allies 23389 | -2/Protoforge | Spotted Executioner 23433 | -2/Protoforge | Spotted Executioner 23433 | -2/Protoforge | Spotted Striker 23440 | -2/Protoforge | Spotted Executioner 23453 | -2/Protoforge | Core integrity fell below 50% 23466 | -2/Protoforge | P-80 Master assimilated allied 02F65-D 23494 | -2/Protoforge | Lost 8 parts (1p2n5u) 23514 | -2/Protoforge | Lost 7 allies 23535 | -2/Protoforge | Spotted Executioner 23546 | -2/Protoforge | Spotted Executioner 23547 | -2/Protoforge | Destroyed Executioner 23560 | -2/Protoforge | Found Exp. Targeting Computer 23613 | -2/Protoforge | Lost 4 allies 23634 | -2/Protoforge | Installed UFD Drillbomb at designated target 23634 | -2/Protoforge | UFD reported confirmed Drillbomb installation 23670 | -2/Protoforge | Spotted Striker 23670 | -2/Protoforge | Spotted Striker 23670 | -2/Protoforge | Spotted Striker 23670 | -2/Protoforge | Spotted Striker 23687 | -2/Protoforge | Found UFD Drillbomb 23705 | -2/Protoforge | Lost 4 allies 23715 | -2/Protoforge | UFD reported confirmed Drillbomb installation 23733 | -2/Protoforge | Spotted Executioner 23752 | -2/Protoforge | P-80 Master assimilated allied 02F97-D 23759 | -2/Protoforge | Lost 4 allies 23770 | -2/Protoforge | UFD reported confirmed Drillbomb installation 23782 | -2/Protoforge | Spotted Striker 23784 | -2/Protoforge | Spotted Striker 23811 | -2/Protoforge | Destroyed Executioner 23825 | -2/Protoforge | Spotted Executioner 23827 | -2/Protoforge | Spotted Striker 23834 | -2/Protoforge | Lost 7 allies 23881 | -2/Protoforge | Lost 3 allies 23967 | -2/Protoforge | Installed UFD Drillbomb at designated target 23967 | -2/Protoforge | UFD reported confirmed Drillbomb installation 23992 | -2/Protoforge | Spotted Striker 23995 | -2/Protoforge | Spotted Striker 24012 | -2/Protoforge | Spotted Striker 24013 | -2/Protoforge | Spotted Striker 24016 | -2/Protoforge | Spotted Striker 24018 | -2/Protoforge | Spotted Executioner 24021 | -2/Protoforge | Spotted Executioner 24023 | -2/Protoforge | Core integrity fell below 20% 24025 | -2/Protoforge | Found UFD Drillbomb 24113 | -2/Protoforge | Lost 9 allies 24121 | -2/Protoforge | Build established: Scavenger-Mutant 24146 | -2/Protoforge | Spotted Executioner 24159 | -2/Protoforge | Spotted Executioner 24169 | -2/Protoforge | Spotted Striker 24170 | -2/Protoforge | Spotted Executioner 24196 | -2/Protoforge | Installed UFD Drillbomb at designated target 24196 | -2/Protoforge | UFD reported confirmed Drillbomb installation 24197 | -2/Protoforge | UFD began Drillbomb countdown 24227 | -2/Protoforge | Spotted Striker 24227 | -2/Protoforge | Spotted Executioner 24230 | -2/Protoforge | Spotted Executioner 24231 | -2/Protoforge | Spotted Executioner 24259 | -2/Protoforge | Destroyed by Executioner with Helical Railgun Last Messages --------------- Reactor into Forge Plexus. 24251_ N-04 Retriever inserts Unknown Device into Forge Plexus. 24252_ N-04 Retriever inserts Ovr. Huge Scrapsphere into Forge Plexus. 24253_ N-04 Retriever inserts Prototype Leg into Forge Plexus. 24255_ N-04 Retriever inserts Adv. Heat Sink into Forge Plexus. 24256_ N-04 Retriever inserts Adv. Kinecellerator into Forge Plexus. 24257_ N-04 Retriever inserts Partition Strike Chip into Forge Plexus. The surroundings shift and blur. 24258_ Discarded Enh. Optical Array. 24258_ N-04 Retriever inserts Corrupted Ovr. Huge Scrapsphere into Forge Plexus. The surroundings shift and blur. 24259_ Penetrated by Slug. 24259_ Imp. Core Shielding destroyed. Map ----- +----------------------------------------------------+ | ### # # #####????## | | "## ""##"#"###????## "" " " | | # " ##????## """" " "" "" | | " % "[ ##????## " "" """ """" "" | | # "= """ !=!##????## """ """" """ " " | | ###%!" *=*[="#######[! "" " | | "##*=[!!"" !" ## #%#/!%!! """ | | %="!=%"%% "[[[# !! # % " """" " | | ##" ! %% #[ ! " " "" " | | # #[* %%% " %"% # % % %* """ | | ###"!%"""""""" %#% %% " % """"" " | | !" %% %% %% %%%% "% " | | ]" %%%% %%%%&% %%%% =% """ | | %"% %%%%%%%% %%E%&%%!%[" " """" | | * "% %%" %" & &#%%%% [! " " | | ]!=! % %% !="% =#En%% % " " """" " | | *!!| %%% %!& p!% n% % n""""" " | | ! "% "%% / " ## #% " "" " """" | | %%%%%%% [" "!# #;% %%"%% % " """"""" | | %%% % !%[ "" " # # %%""% """""""" | | %[%!* !*==* "" ###; s% " """"""""" | | %%=!"!!!%# ## # %%%% % "" " """""""""" | | %=%!* ######### # sK%%%%%% """"""""""" | | %%" ######## ## % %%% % " "" """""""""""" | | %%" #??????#### """s"% " """"""""""""" | | %"# ###????????## "ss@% % " """"""""""""" | | % " #??????????## "" % %% n"" """"""""""""" | | "" #??????????## % %%%"% " """""""""""""" | | " # #??????????## "%%%% " """""""""""""" | | % " ##??????????## "% %% % n """""""""""""" | | ####???????????## %% % """""""""""""" | | %####???????????## % % % """""""""""""" | | #######????????## " """""""""""""" | | #"""######????????## " " %%" """""""""""""" | | ##????????## " """ """"" " """""""""""""" | | ##????????## "" " """""""""""""" | | ##????????## " """"""""""""" | | % ##????????## """"""""""""" | | ###"##+###????????## """"""" "" """"""""""""" | | ###????????## """ " " """""""""""" | | ##### ##?????????## " " """"""""""" | | ##### ##?????????## "" """""""""" | | ##### #########??## "" "" "" """"""""" | | #####+#########??## "" "" " "" """""""" | | %# T ##??## " "" "" """"""" | | + """" ##??## " " """" | | # """" ##??## " " """% % | | # """" ##??## " " """ " " """"" | | " """" ##??## " """ | | # ##??## "" " | +----------------------------------------------------+ Best States ------------- Heat Dissipation 49 Energy Generation 41 Energy Capacity 1450 Matter Stores 300 Matter Capacity 300 Sight Range 22 Robot Scan Range 16 Terrain Scan Density 10 ECM Strength 2 Armor Coverage 375 Core Shielding 30 Propulsion Shielding 90 Utility Shielding 90 Melee Speed Boost 50 Phase Shifting 15 Evasion (%) 92 Targeting Accuracy 12 Melee Accuracy 24 Target Analysis 10 Core Analysis 12 Armor Integrity Analysis 40 Recoil Reduction 3 Particle Charging 15 Offensive Hacking 42 Defensive Hacking 36 Authchip Count 4 Item Schematics ----------------- Cld. VTOL Module | -6/Factory | Hacked Field Propulsion Array | -6/Factory | Scanalyzed Cld. Cesium-ion Thruster | -6/Factory | Scanalyzed Hvy. Pick | -6/Zion | Archive Field Propulsion Drive | -6/Zion | Archive Adv. Melee Analysis Suite | -6/Zion | Archive Hvy. Treads | -6/Zion | Archive Force Field | -6/Zion | Archive Adv. Hacking Suite | -6/Zion | Archive Arm. Leg | -6/Zion | Archive Adv. Thermal Generator | -6/Zion | Archive Imp. Force Field | -6/Zion | Archive Adv. Signal Interpreter | -6/Zion | Archive Adv. Trap Extractor | -6/Zion | Archive Fusion Compressor | -6/Zion | Archive Adv. Field Recycling Unit | -6/Zion | Archive Adv. Shield Generator | -6/Zion | Archive Phase Shifter | -6/Zion | Archive Exp. Propulsion Shielding | -5/Factory | Hacked Exp. Utility Shielding | -5/Factory | Hacked Imp. Light Armor Plating | -5/Factory | Scanalyzed Mni. Smartbomb Launcher | -4/Factory | Hacked Electron Diverter | -4/Factory | Scanalyzed Exp. Melee Analysis Suite | -3/Research | Hacked Nanoactuators | -3/Research | Hacked Weapon Mount | -3/Research | Hacked Exp. Weapon Shielding | -3/Research | Hacked Q-thruster | -3/Testing | Hacked Adv. Kinecellerator | -3/Testing | Archive Imp. Lightning Gun | -3/Testing | Archive Core Analyzer | -2/Quarantine | Hacked Adv. Force Booster | -2/Quarantine | Hacked Robot Schematics ------------------ G-50 Soldier | -6/Zion | Archive T-07 Excavator | -6/Zion | Archive R-06 Scavenger | -6/Zion | Archive D-83 Annihilator | -6/Zion | Archive M-30 Cleanser | -3/Testing | Archive Fabricated ------------ Cld. VTOL Module | x1 | -6/Factory | Authchip Cld. Cesium-ion Thruster | x1 | -5/Factory | Authchip Adv. Hacking Suite | x1 | -5/Factory | Authchip Exp. Propulsion Shielding | x1 | -4/Factory | Authchip Cld. Cesium-ion Thruster | x1 | -4/Factory | Authchip Exp. Melee Analysis Suite | x1 | -3/Testing | Authchip Nanoactuators | x2 | -3/Testing | Authchip Exp. Utility Shielding | x1 | -2/Research | Authchip Repaired ---------- Lgt. Treads | 24% | -10/Materials Imp. Light Armor Plating | 58% | -6/Factory Field Propulsion Array | 12% | -6/Factory | Corrupted Cld. Cesium-ion Thruster | 20% | -5/Factory Imp. Light Armor Plating | 37% | -5/Factory Imp. Light Armor Plating | 3% | -3/Research Cld. Cesium-ion Thruster | 60% | -3/Testing Imp. Light Armor Plating | 1% | -2/Protoforge Alien Tech Used ----------------- Subatomic Replicator Achievements -------------- Ambidextrous Rampage Challenges ------------ None Game ------ Seed WarlordSuspensionStripper Manual? 0 Play Time 06:40:16 Cumulative 137.9 hours Start 2025.09.12 @ 18:05:48 End 2025.09.13 @ 21:53:09 Sessions 3 Manual Loads 0 Difficulty Rogue Special Mode None Game No. 120 Rogue 120 Adventurer 0 Explorer 0 Win Type - Total 4 Types 3/0/1/0/0/0/0/0/0/0 Lore% 70 Gallery% 62 Achievement% 58 Wizard Run 0 Options --------- Layout 1 ASCII 0 Keyboard 0 Movement Arrows Keybinds 0 Fullscreen 1 Font 24/Smallcaps Map View 50x40 Zoom Use 0% Tactical HUD 1 Map Filters NONE Filters NONE Steam 1 RUN: 7ec63e7a-e4bb-4cd3-87cf-d1c028c48f1a